[Event "Schack-SM 2022: Mastarklassen"]
[Site "Fyrishov, Idrottsgatan 2, Uppsala, Sweden"]
[Date "2022.07.08"]
[Round "7.2"]
[White "Malmstig, Erik"]
[Black "Eriksson, Dan"]
[Result "1-0"]
[TimeControl "90 minutes for 40 moves + 30 minutes for the rest of the game + 30 seconds per move from move one."]
[WhiteTitle "FM"]
[WhiteFideId "1702866"]
[BlackFideId "1710095"]
[WhiteElo "2204"]
[BlackElo "2246"]

1. d4 {[%clk 01:30:56]} {[%emt 00:00:05]} d5 {[%clk 01:30:51]} {[%emt
00:00:08]} 2. Nf3 {[%clk 01:31:14]} {[%emt 00:00:11]} Nf6 {[%clk 01:27:56]}
{[%emt 00:03:26]} 3. c4 {[%clk 01:31:29]} {[%emt 00:00:15]} e6 {[%clk
01:25:39]} {[%emt 00:02:47]} 4. Nc3 {[%clk 01:31:07]} {[%emt 00:00:51]} c6
{[%clk 01:24:04]} {[%emt 00:02:06]} 5. e3 {[%clk 01:29:04]} {[%emt 00:02:32]}
Bd6 {[%clk 01:23:20]} {[%emt 00:01:14]} 6. Bd3 {[%clk 01:28:13]} {[%emt
00:01:21]} Nbd7 {[%clk 01:19:08]} {[%emt 00:04:42]} 7. O-O {[%clk 01:26:23]}
{[%emt 00:02:19]} dxc4 {[%clk 01:18:13]} {[%emt 00:01:27]} 8. Bxc4 {[%clk
01:26:41]} {[%emt 00:00:11]} b5 {[%clk 01:18:06]} {[%emt 00:00:37]} 9. Bb3
{[%clk 01:23:53]} {[%emt 00:03:17]} b4 {[%clk 01:17:04]} {[%emt 00:01:32]} 10.
Nb1 {[%clk 01:23:07]} {[%emt 00:01:16]} c5 {[%clk 01:07:46]} {[%emt 00:09:49]}
11. a3 {[%clk 01:09:19]} {[%emt 00:14:18]} cxd4 {[%clk 01:01:01]} {[%emt
00:07:15]} 12. axb4 {[%clk 00:58:05]} {[%emt 00:11:44]} e5 {[%clk 00:49:59]}
{[%emt 00:11:32]} 13. exd4 {[%clk 00:56:43]} {[%emt 00:01:51]} e4 {[%clk
00:45:21]} {[%emt 00:05:08]} 14. Ne5 {[%clk 00:38:35]} {[%emt 00:18:37]} O-O
{[%clk 00:32:29]} {[%emt 00:13:23]} 15. Bf4 {[%clk 00:36:50]} {[%emt 00:02:14]}
Nxe5 {[%clk 00:23:24]} {[%emt 00:09:36]} 16. dxe5 {[%clk 00:36:22]} {[%emt
00:00:56]} Bc7 {[%clk 00:23:44]} {[%emt 00:00:11]} 17. exf6 {[%clk 00:15:41]}
{[%emt 00:21:11]} Qxd1 {[%clk 00:19:32]} {[%emt 00:04:42]} 18. Rxd1 {[%clk
00:15:33]} {[%emt 00:00:37]} Bxf4 {[%clk 00:19:59]} {[%emt 00:00:04]} 19. fxg7
{[%clk 00:15:43]} {[%emt 00:00:20]} Kxg7 {[%clk 00:20:02]} {[%emt 00:00:28]} 20.
Nc3 {[%clk 00:12:28]} {[%emt 00:03:44]} e3 {[%clk 00:14:06]} {[%emt 00:06:26]}
21. Bd5 {[%clk 00:12:07]} {[%emt 00:00:51]} Rb8 {[%clk 00:14:25]} {[%emt
00:00:11]} 22. b5 {[%clk 00:12:15]} {[%emt 00:00:22]} exf2+ {[%clk 00:11:41]}
{[%emt 00:03:14]} 23. Kxf2 {[%clk 00:11:34]} {[%emt 00:01:11]} Re8 {[%clk
00:11:51]} {[%emt 00:00:20]} 24. Kf3 {[%clk 00:10:04]} {[%emt 00:02:00]} Bxh2
{[%clk 00:09:12]} {[%emt 00:03:10]} 25. g3 {[%clk 00:06:45]} {[%emt 00:03:49]}
Rb6 {[%clk 00:06:56]} {[%emt 00:02:46]} 26. Kg2 {[%clk 00:06:21]} {[%emt
00:00:53]} a6 {[%clk 00:02:56]} {[%emt 00:04:31]} 27. Kxh2 {[%clk 00:05:26]}
{[%emt 00:01:24]} axb5 {[%clk 00:03:23]} {[%emt 00:00:04]} 28. Rf1 {[%clk
00:04:03]} {[%emt 00:01:53]} b4 {[%clk 00:03:08]} {[%emt 00:00:45]} 29. Rxf7+
{[%clk 00:01:50]} {[%emt 00:02:43]} Kg6 {[%clk 00:03:36]} {[%emt 00:00:01]} 30.
Rf2 {[%clk 00:01:56]} {[%emt 00:00:24]} Bb7 {[%clk 00:02:47]} {[%emt 00:01:19]}
31. Bxb7 {[%clk 00:01:33]} {[%emt 00:00:53]} bxc3 {[%clk 00:03:13]} {[%emt
00:00:05]} 32. Ra6 {[%clk 00:01:10]} {[%emt 00:00:53]} Rxa6 {[%clk 00:02:29]}
{[%emt 00:01:14]} 33. Bxa6 {[%clk 00:01:38]} {[%emt 00:00:01]} cxb2 {[%clk
00:02:52]} {[%emt 00:00:07]} 34. Rxb2 {[%clk 00:02:01]} {[%emt 00:00:07]} Rd8
{[%clk 00:02:33]} {[%emt 00:00:49]} 35. Kh3 {[%clk 00:02:07]} {[%emt 00:00:24]}
Rd6 {[%clk 00:02:49]} {[%emt 00:00:14]} 36. Bb7 {[%clk 00:02:17]} {[%emt
00:00:20]} Rd4 {[%clk 00:02:23]} {[%emt 00:00:57]} 37. Rb6+ {[%clk 00:02:21]}
{[%emt 00:00:25]} Kg5 {[%clk 00:02:46]} {[%emt 00:00:05]} 38. Bf3 {[%clk
00:02:20]} {[%emt 00:00:32]} Rd3 {[%clk 00:02:37]} {[%emt 00:00:40]} 39. Be4
{[%clk 00:02:03]} {[%emt 00:00:48]} Rd1 {[%clk 00:03:05]} {[%emt 00:00:02]} 40.
Rb7 {[%clk 00:02:07]} {[%emt 00:00:25]} h6 {[%clk 00:01:58]} {[%emt 00:01:37]}
41. Rb6 {[%clk 00:02:01]} {[%emt 00:00:36]} Kh5 {[%clk 00:02:09]} {[%emt
00:00:18]} 42. Bf3+ {[%emt 00:00:17]} 1-0

[Event "Schack-SM 2022: Mastarklassen"]
[Site "Fyrishov, Idrottsgatan 2, Uppsala, Sweden"]
[Date "2022.07.08"]
[Round "7.3"]
[White "Jogstad, Daniel"]
[Black "Crevatin, Leo"]
[Result "0-1"]
[TimeControl "90 minutes for 40 moves + 30 minutes for the rest of the game + 30 seconds per move from move one."]
[WhiteTitle "CM"]
[BlackTitle "CM"]
[WhiteFideId "1718959"]
[BlackFideId "1726307"]
[WhiteElo "2057"]
[BlackElo "2259"]

1. e4 {[%clk 01:30:56]} {[%emt 00:00:02]} c6 {[%clk 01:30:59]} {[%emt
00:00:03]} 2. d4 {[%clk 01:31:17]} {[%emt 00:00:07]} d5 {[%clk 01:31:27]}
{[%emt 00:00:02]} 3. exd5 {[%clk 01:31:41]} {[%emt 00:00:07]} cxd5 {[%clk
01:31:54]} {[%emt 00:00:03]} 4. Bd3 {[%clk 01:32:05]} {[%emt 00:00:06]} Nc6
{[%clk 01:32:19]} {[%emt 00:00:05]} 5. c3 {[%clk 01:32:31]} {[%emt 00:00:04]}
Qc7 {[%clk 01:32:45]} {[%emt 00:00:04]} 6. h3 {[%clk 01:32:57]} {[%emt
00:00:04]} e6 {[%clk 01:33:09]} {[%emt 00:00:07]} 7. Nf3 {[%clk 01:32:11]}
{[%emt 00:01:14]} Bd6 {[%clk 01:33:28]} {[%emt 00:00:11]} 8. O-O {[%clk
01:30:31]} {[%emt 00:02:11]} Nge7 {[%clk 01:30:38]} {[%emt 00:03:20]} 9. Re1
{[%clk 01:29:06]} {[%emt 00:01:54]} O-O {[%clk 01:30:49]} {[%emt 00:00:19]} 10.
Qc2 {[%clk 00:35:21]} {[%emt 00:54:15]} h6 {[%clk 01:24:26]} {[%emt 00:06:53]}
11. Nbd2 {[%clk 00:34:51]} {[%emt 00:01:00]} Bd7 {[%clk 01:18:06]} {[%emt
00:06:50]} 12. Nf1 {[%clk 00:35:13]} {[%emt 00:00:08]} f6 {[%clk 01:11:32]}
{[%emt 00:07:04]} 13. b4 {[%clk 00:19:52]} {[%emt 00:15:51]} a6 {[%clk
01:07:50]} {[%emt 00:04:12]} 14. Ne3 {[%clk 00:17:49]} {[%emt 00:02:32]} e5
{[%clk 00:54:44]} {[%emt 00:13:37]} 15. Qb3 {[%clk 00:18:16]} {[%emt 00:00:04]}
Be6 {[%clk 00:54:03]} {[%emt 00:01:10]} 16. Be4 {[%clk 00:17:24]} {[%emt
00:01:22]} dxe4 {[%clk 00:52:05]} {[%emt 00:02:28]} 17. Qxe6+ {[%clk 00:16:20]}
{[%emt 00:01:35]} Kh8 {[%clk 00:49:18]} {[%emt 00:03:16]} 18. dxe5 {[%clk
00:13:05]} {[%emt 00:03:45]} Bxe5 {[%clk 00:44:00]} {[%emt 00:05:47]} 19. Nxe5
{[%clk 00:13:32]} {[%emt 00:00:04]} Nxe5 {[%clk 00:43:31]} {[%emt 00:00:59]} 20.
c4 {[%clk 00:13:55]} {[%emt 00:00:08]} Nd3 {[%clk 00:42:59]} {[%emt 00:01:02]}
21. Re2 {[%clk 00:10:24]} {[%emt 00:04:01]} Nf4 {[%clk 00:41:08]} {[%emt
00:02:20]} 22. Qg4 {[%clk 00:10:26]} {[%emt 00:00:28]} h5 {[%clk 00:40:02]}
{[%emt 00:01:35]} 0-1

[Event "Schack-SM 2022: Mastarklassen"]
[Site "Fyrishov, Idrottsgatan 2, Uppsala, Sweden"]
[Date "2022.07.08"]
[Round "7.4"]
[White "Johnson, Daniel"]
[Black "Pettersson, Tobias"]
[Result "1-0"]
[TimeControl "90 minutes for 40 moves + 30 minutes for the rest of the game + 30 seconds per move from move one."]
[WhiteFideId "1721283"]
[BlackFideId "1705962"]
[WhiteElo "2191"]
[BlackElo "2027"]

1. d4 {[%clk 01:23:36]} {[%emt 00:07:17]} d6 {[%clk 01:30:22]} {[%emt
00:00:43]} 2. c4 {[%clk 01:23:47]} {[%emt 00:00:20]} e5 {[%clk 01:29:52]}
{[%emt 00:01:00]} 3. d5 {[%clk 01:23:49]} {[%emt 00:00:28]} f5 {[%clk
01:29:14]} {[%emt 00:01:07]} 4. e4 {[%clk 01:23:58]} {[%emt 00:00:22]} Nf6
{[%clk 01:28:55]} {[%emt 00:00:48]} 5. Nc3 {[%clk 01:22:31]} {[%emt 00:01:57]}
Be7 {[%clk 01:27:25]} {[%emt 00:01:59]} 6. exf5 {[%clk 01:21:58]} {[%emt
00:01:04]} Bxf5 {[%clk 01:27:10]} {[%emt 00:00:45]} 7. Bd3 {[%clk 01:22:12]}
{[%emt 00:00:17]} Bxd3 {[%clk 01:23:26]} {[%emt 00:04:14]} 8. Qxd3 {[%clk
01:22:35]} {[%emt 00:00:07]} O-O {[%clk 01:22:01]} {[%emt 00:01:55]} 9. Nf3
{[%clk 01:17:03]} {[%emt 00:06:02]} Nbd7 {[%clk 01:20:27]} {[%emt 00:02:04]} 10.
Be3 {[%clk 01:03:13]} {[%emt 00:14:20]} Ng4 {[%clk 01:13:35]} {[%emt 00:07:22]}
11. Ne4 {[%clk 01:00:16]} {[%emt 00:03:27]} Nxe3 {[%clk 01:09:48]} {[%emt
00:04:17]} 12. fxe3 {[%clk 00:59:07]} {[%emt 00:01:40]} Bh4+ {[%clk 01:09:14]}
{[%emt 00:01:03]} 13. Kd2 {[%clk 00:55:45]} {[%emt 00:03:51]} a5 {[%clk
01:04:45]} {[%emt 00:05:00]} 14. Raf1 {[%clk 00:53:13]} {[%emt 00:03:02]} b6
{[%clk 01:01:37]} {[%emt 00:03:38]} 15. g3 {[%clk 00:50:15]} {[%emt 00:03:28]}
Be7 {[%clk 01:01:45]} {[%emt 00:00:21]} 16. h4 {[%clk 00:46:49]} {[%emt
00:03:57]} Nc5 {[%clk 01:00:19]} {[%emt 00:01:57]} 17. Qc2 {[%clk 00:38:07]}
{[%emt 00:09:11]} Nxe4+ {[%clk 00:57:22]} {[%emt 00:03:27]} 18. Qxe4 {[%clk
00:38:28]} {[%emt 00:00:09]} Qd7 {[%clk 00:56:03]} {[%emt 00:01:49]} 19. g4
{[%clk 00:37:54]} {[%emt 00:01:04]} Rf7 {[%clk 00:52:40]} {[%emt 00:03:51]} 20.
b3 {[%clk 00:24:02]} {[%emt 00:14:24]} a4 {[%clk 00:48:28]} {[%emt 00:04:42]}
21. b4 {[%clk 00:24:07]} {[%emt 00:00:25]} a3 {[%clk 00:48:41]} {[%emt
00:00:18]} 22. b5 {[%clk 00:24:04]} {[%emt 00:00:32]} Ra4 {[%clk 00:47:31]}
{[%emt 00:01:40]} 23. Kd3 {[%clk 00:20:10]} {[%emt 00:04:24]} Rb4 {[%clk
00:46:50]} {[%emt 00:01:11]} 24. Rf2 {[%clk 00:18:40]} {[%emt 00:01:59]} Qe8
{[%clk 00:44:20]} {[%emt 00:03:00]} 25. Rhf1 {[%clk 00:18:31]} {[%emt
00:00:40]} g6 {[%clk 00:38:19]} {[%emt 00:06:31]} 26. h5 {[%clk 00:15:45]}
{[%emt 00:03:16]} Rf6 {[%clk 00:33:38]} {[%emt 00:05:11]} 27. g5 {[%clk
00:04:36]} {[%emt 00:11:39]} Rf8 {[%clk 00:11:34]} {[%emt 00:22:34]} 28. Nh4
{[%clk 00:03:20]} {[%emt 00:01:45]} Rxf2 {[%clk 00:07:49]} {[%emt 00:04:16]} 29.
Rxf2 {[%clk 00:03:46]} {[%emt 00:00:05]} Rb2 {[%clk 00:06:55]} {[%emt
00:01:24]} 30. Rf1 {[%clk 00:03:44]} {[%emt 00:00:32]} Bxg5 {[%clk 00:04:21]}
{[%emt 00:03:04]} 31. hxg6 {[%clk 00:03:24]} {[%emt 00:00:50]} hxg6 {[%clk
00:02:30]} {[%emt 00:02:21]} 32. Nxg6 {[%clk 00:03:16]} {[%emt 00:00:38]} Kg7
{[%clk 00:02:38]} {[%emt 00:00:22]} 33. Nf8 {[%clk 00:01:30]} {[%emt 00:02:15]}
Qh5 {[%clk 00:02:30]} {[%emt 00:00:38]} 34. Ne6+ {[%clk 00:01:43]} {[%emt
00:00:16]} Kh6 {[%clk 00:02:55]} {[%emt 00:00:06]} 35. Rh1 {[%clk 00:01:03]}
{[%emt 00:01:10]} Rh2 {[%clk 00:03:13]} {[%emt 00:00:13]} 36. Rxh2 {[%clk
00:00:38]} {[%emt 00:00:55]} Qxh2 {[%clk 00:03:39]} {[%emt 00:00:02]} 37. Nf8
{[%clk 00:00:36]} {[%emt 00:00:33]} Qh5 {[%clk 00:03:17]} {[%emt 00:00:51]} 38.
Qh7# {[%clk 00:00:57]} {[%emt 00:00:10]} 1-0

[Event "Schack-SM 2022: Mastarklassen"]
[Site "Fyrishov, Idrottsgatan 2, Uppsala, Sweden"]
[Date "2022.07.08"]
[Round "7.5"]
[White "Johansson, Thomas"]
[Black "Lundberg, David"]
[Result "1/2-1/2"]
[TimeControl "90 minutes for 40 moves + 30 minutes for the rest of the game + 30 seconds per move from move one."]
[WhiteFideId "1708244"]
[BlackFideId "1707051"]
[WhiteElo "2231"]
[BlackElo "2219"]

1. d4 {[%clk 01:27:01]} {[%emt 00:03:56]} d5 {[%clk 01:30:27]} {[%emt
00:00:34]} 2. Nf3 {[%clk 01:27:23]} {[%emt 00:00:07]} Nf6 {[%clk 01:30:49]}
{[%emt 00:00:09]} 3. c4 {[%clk 01:26:51]} {[%emt 00:01:03]} e6 {[%clk
01:30:35]} {[%emt 00:00:43]} 4. e3 {[%clk 01:26:58]} {[%emt 00:00:23]} Be7
{[%clk 01:29:51]} {[%emt 00:01:14]} 5. Bd3 {[%clk 01:27:13]} {[%emt 00:00:15]}
O-O {[%clk 01:29:59]} {[%emt 00:00:22]} 6. O-O {[%clk 01:27:30]} {[%emt
00:00:13]} b6 {[%clk 01:27:54]} {[%emt 00:02:36]} 7. b3 {[%clk 01:27:50]}
{[%emt 00:00:09]} Bb7 {[%clk 01:28:15]} {[%emt 00:00:08]} 8. Bb2 {[%clk
01:28:13]} {[%emt 00:00:07]} c5 {[%clk 01:27:15]} {[%emt 00:01:30]} 9. Nc3
{[%clk 01:19:58]} {[%emt 00:08:45]} cxd4 {[%clk 01:24:44]} {[%emt 00:03:01]} 10.
exd4 {[%clk 01:20:19]} {[%emt 00:00:09]} Nc6 {[%clk 01:23:14]} {[%emt
00:02:01]} 11. Qe2 {[%clk 01:12:29]} {[%emt 00:08:20]} Nb4 {[%clk 01:19:18]}
{[%emt 00:04:26]} 12. Bb1 {[%clk 01:12:46]} {[%emt 00:00:12]} Rc8 {[%clk
01:14:53]} {[%emt 00:04:55]} 13. Ne5 {[%clk 01:03:06]} {[%emt 00:10:10]} Qd6
{[%clk 01:00:15]} {[%emt 00:15:09]} 14. Re1 {[%clk 00:57:12]} {[%emt 00:06:23]}
a6 {[%clk 00:43:38]} {[%emt 00:17:07]} 15. Nd1 {[%clk 00:54:56]} {[%emt
00:02:46]} Rfd8 {[%clk 00:39:24]} {[%emt 00:04:45]} 16. Ne3 {[%clk 00:54:58]}
{[%emt 00:00:27]} Bf8 {[%clk 00:30:43]} {[%emt 00:09:11]} 17. Qf3 {[%clk
00:37:07]} {[%emt 00:18:22]} Qc7 {[%clk 00:29:00]} {[%emt 00:02:13]} 18. Qh3
{[%clk 00:35:49]} {[%emt 00:01:47]} h6 {[%clk 00:23:24]} {[%emt 00:06:06]} 19.
f3 {[%clk 00:27:50]} {[%emt 00:08:29]} dxc4 {[%clk 00:19:43]} {[%emt 00:04:12]}
20. bxc4 {[%clk 00:28:07]} {[%emt 00:00:12]} b5 {[%clk 00:20:03]} {[%emt
00:00:10]} 21. a3 {[%clk 00:26:22]} {[%emt 00:02:15]} Nc6 {[%clk 00:18:36]}
{[%emt 00:01:57]} 22. Nxc6 {[%clk 00:25:08]} {[%emt 00:01:44]} Qxc6 {[%clk
00:17:18]} {[%emt 00:01:47]} 23. d5 {[%clk 00:24:51]} {[%emt 00:00:46]} exd5
{[%clk 00:17:01]} {[%emt 00:00:48]} 24. cxd5 {[%clk 00:21:35]} {[%emt
00:03:46]} Nxd5 {[%clk 00:07:08]} {[%emt 00:10:23]} 25. Qf5 {[%clk 00:20:44]}
{[%emt 00:01:19]} g6 {[%clk 00:07:32]} {[%emt 00:00:07]} 26. Qe5 {[%clk
00:20:39]} {[%emt 00:00:35]} Nc3 {[%clk 00:07:59]} {[%emt 00:00:04]} 27. Be4
{[%clk 00:19:45]} {[%emt 00:01:24]} Qc5 {[%clk 00:03:41]} {[%emt 00:04:48]} 28.
Qxc5 {[%clk 00:17:23]} {[%emt 00:02:53]} Rxc5 {[%clk 00:01:31]} {[%emt
00:02:40]} 29. Bxb7 {[%clk 00:17:18]} {[%emt 00:00:35]} Rd2 {[%clk 00:01:25]}
{[%emt 00:00:36]} 30. Bxc3 {[%clk 00:07:47]} {[%emt 00:10:01]} Rxc3 {[%clk
00:01:37]} {[%emt 00:00:17]} 31. Nf1 {[%emt 00:06:05]} Rb2 {[%clk 00:01:01]}
{[%emt 00:01:03]} 32. f4 {[%clk 00:01:41]} {[%emt 00:01:04]} a5 {[%clk
00:01:08]} {[%emt 00:00:23]} 33. a4 {[%clk 00:01:43]} {[%emt 00:00:28]} bxa4
{[%clk 00:01:31]} {[%emt 00:00:07]} 34. Bd5 {[%clk 00:02:01]} {[%emt 00:00:12]}
a3 {[%clk 00:01:27]} {[%emt 00:00:34]} 35. Kh1 {[%clk 00:01:07]} {[%emt
00:01:24]} Bd6 {[%clk 00:01:44]} {[%emt 00:00:12]} 36. Ne3 {[%emt 00:01:06]}
Rd2 {[%clk 00:01:37]} {[%emt 00:00:35]} 37. Ba2 {[%clk 00:00:32]} {[%emt
00:00:31]} Bc5 {[%clk 00:00:41]} {[%emt 00:01:26]} 38. Nd5 {[%clk 00:00:32]}
{[%emt 00:00:30]} Rcc2 {[%clk 00:01:03]} {[%emt 00:00:07]} 39. Bb3 {[%clk
00:00:47]} {[%emt 00:00:16]} Rb2 {[%clk 00:01:28]} {[%emt 00:00:05]} 40. Nf6+
{[%clk 00:01:09]} {[%emt 00:00:08]} Kg7 {[%clk 00:01:32]} {[%emt 00:00:26]} 41.
Ne4 {[%clk 00:01:37]} {[%emt 00:00:02]} Rxg2 {[%clk 00:01:08]} {[%emt
00:00:53]} 42. Nxc5 {[%clk 00:01:35]} {[%emt 00:00:32]} Rxh2+ {[%clk 00:01:33]}
{[%emt 00:00:05]} 43. Kg1 {[%clk 00:02:01]} {[%emt 00:00:05]} Rbg2+ {[%clk
00:01:52]} {[%emt 00:00:10]} 44. Kf1 {[%clk 00:02:30]} {[%emt 00:00:02]} Rf2+
{[%clk 00:02:12]} {[%emt 00:00:09]} 45. Kg1 {[%clk 00:02:56]} {[%emt 00:00:04]}
Rfg2+ {[%clk 00:02:28]} {[%emt 00:00:14]} 46. Kf1 {[%emt 00:00:04]} 1/2-1/2

[Event "Schack-SM 2022: Mastarklassen"]
[Site "Fyrishov, Idrottsgatan 2, Uppsala, Sweden"]
[Date "2022.07.07"]
[Round "6.1"]
[White "Crevatin, Leo"]
[Black "Lind, Jan-Olov"]
[Result "1/2-1/2"]
[TimeControl "90 minutes for 40 moves + 30 minutes for the rest of the game + 30 seconds per move from move one."]
[WhiteTitle "CM"]
[WhiteFideId "1726307"]
[BlackFideId "1701193"]
[WhiteElo "2259"]
[BlackElo "2173"]

1. d4 {[%clk 01:29:30]} {[%emt 00:01:30]} Nf6 {[%clk 01:30:47]} {[%emt
00:00:13]} 2. c4 {[%clk 01:29:35]} {[%emt 00:00:24]} g6 {[%clk 01:31:09]}
{[%emt 00:00:09]} 3. Nc3 {[%clk 01:30:02]} {[%emt 00:00:04]} Bg7 {[%clk
01:31:32]} {[%emt 00:00:07]} 4. e4 {[%clk 01:30:29]} {[%emt 00:00:03]} d6
{[%clk 01:31:54]} {[%emt 00:00:08]} 5. f3 {[%clk 01:30:53]} {[%emt 00:00:07]}
O-O {[%clk 01:32:15]} {[%emt 00:00:09]} 6. Be3 {[%clk 01:31:15]} {[%emt
00:00:08]} c5 {[%clk 01:31:56]} {[%emt 00:00:49]} 7. dxc5 {[%clk 01:31:35]}
{[%emt 00:00:11]} dxc5 {[%clk 01:32:12]} {[%emt 00:00:14]} 8. Qxd8 {[%clk
01:32:00]} {[%emt 00:00:05]} Rxd8 {[%clk 01:32:33]} {[%emt 00:00:08]} 9. Bxc5
{[%clk 01:32:27]} {[%emt 00:00:03]} Nc6 {[%clk 01:32:48]} {[%emt 00:00:16]} 10.
Be3 {[%clk 01:32:52]} {[%emt 00:00:05]} Be6 {[%clk 01:07:43]} {[%emt 00:25:35]}
11. Rc1 {[%clk 01:24:16]} {[%emt 00:09:06]} Nd7 {[%clk 01:04:10]} {[%emt
00:04:03]} 12. f4 {[%clk 01:09:24]} {[%emt 00:15:21]} Bxc3+ {[%clk 00:46:59]}
{[%emt 00:17:40]} 13. Rxc3 {[%clk 01:06:28]} {[%emt 00:03:27]} Nf6 {[%clk
00:47:17]} {[%emt 00:00:13]} 14. Bd3 {[%clk 01:00:54]} {[%emt 00:06:03]} Ng4
{[%clk 00:37:14]} {[%emt 00:10:33]} 15. Bc5 {[%clk 00:53:26]} {[%emt 00:07:58]}
b6 {[%clk 00:35:50]} {[%emt 00:01:55]} 16. Ba3 {[%clk 00:52:48]} {[%emt
00:01:08]} Ne3 {[%clk 00:31:21]} {[%emt 00:04:58]} 17. g3 {[%clk 00:50:15]}
{[%emt 00:03:03]} f5 {[%clk 00:27:46]} {[%emt 00:04:05]} 18. Be2 {[%clk
00:43:58]} {[%emt 00:06:47]} Ng4 {[%clk 00:27:07]} {[%emt 00:01:09]} 19. e5
{[%clk 00:42:44]} {[%emt 00:01:44]} Rac8 {[%clk 00:23:12]} {[%emt 00:04:24]} 20.
h3 {[%clk 00:41:36]} {[%emt 00:01:38]} Nh6 {[%clk 00:23:15]} {[%emt 00:00:27]}
21. Nf3 {[%clk 00:40:20]} {[%emt 00:01:46]} Nf7 {[%clk 00:23:07]} {[%emt
00:00:38]} 22. b3 {[%clk 00:36:28]} {[%emt 00:04:23]} Kf8 {[%clk 00:23:00]}
{[%emt 00:00:36]} 23. Rd3 {[%clk 00:33:04]} {[%emt 00:03:54]} g5 {[%clk
00:17:28]} {[%emt 00:06:02]} 24. Kf2 {[%clk 00:28:03]} {[%emt 00:05:31]} gxf4
{[%clk 00:16:49]} {[%emt 00:01:09]} 25. gxf4 {[%clk 00:28:18]} {[%emt
00:00:15]} Rxd3 {[%clk 00:16:51]} {[%emt 00:00:29]} 26. Bxd3 {[%clk 00:28:46]}
{[%emt 00:00:02]} a5 {[%clk 00:15:20]} {[%emt 00:02:00]} 27. Ke3 {[%clk
00:27:25]} {[%emt 00:01:50]} Ra8 {[%clk 00:13:45]} {[%emt 00:02:05]} 28. Nd4
{[%clk 00:23:13]} {[%emt 00:04:42]} Nxd4 {[%clk 00:14:04]} {[%emt 00:00:11]} 29.
Kxd4 {[%clk 00:23:41]} {[%emt 00:00:02]} Nd8 {[%clk 00:14:00]} {[%emt
00:00:34]} 30. Bc1 {[%clk 00:19:37]} {[%emt 00:04:34]} Nc6+ {[%clk 00:12:35]}
{[%emt 00:01:55]} 31. Kc3 {[%clk 00:19:59]} {[%emt 00:00:08]} Kf7 {[%clk
00:11:38]} {[%emt 00:01:27]} 32. Rg1 {[%clk 00:19:57]} {[%emt 00:00:33]} Nb4
{[%clk 00:09:44]} {[%emt 00:02:23]} 33. Bb1 {[%clk 00:17:46]} {[%emt 00:02:41]}
Rc8 {[%clk 00:09:19]} {[%emt 00:00:54]} 34. a3 {[%clk 00:16:05]} {[%emt
00:02:12]} Na6 {[%clk 00:09:18]} {[%emt 00:00:31]} 35. Rg5 {[%clk 00:14:30]}
{[%emt 00:02:05]} h6 {[%clk 00:06:20]} {[%emt 00:03:29]} 36. Rg1 {[%clk
00:11:58]} {[%emt 00:03:01]} a4 {[%clk 00:06:22]} {[%emt 00:00:28]} 37. b4
{[%clk 00:09:57]} {[%emt 00:02:32]} Rxc4+ {[%clk 00:06:39]} {[%emt 00:00:14]}
38. Kb2 {[%clk 00:10:09]} {[%emt 00:00:19]} Nc7 {[%clk 00:05:12]} {[%emt
00:01:56]} 39. Bd3 {[%clk 00:08:37]} {[%emt 00:02:02]} Rd4 {[%clk 00:04:43]}
{[%emt 00:00:59]} 40. Be2 {[%clk 00:08:25]} {[%emt 00:00:43]} Nd5 {[%clk
00:03:15]} {[%emt 00:01:57]} 41. Rd1 {[%clk 00:02:09]} {[%emt 00:06:46]} Rxd1
{[%clk 00:01:40]} {[%emt 00:02:04]} 1/2-1/2